bitfinex/quotes_SOLUSD_20240824
["timestamp","ask_amount","ask_price","bid_price","bid_amount"]
[1724489585368,10.18563599,155.59,155.56,6.4283]
[1724489586279,10.18563599,155.59,155.55,6.4287]
[1724489586451,10.18563599,155.59,155.54,31.2728]
[1724489586894,20.0,155.6,155.54,31.2728]
[1724489587078,10.18563599,155.58,155.54,31.2728]
[1724489587382,10.18563599,155.58,155.56,6.4283]
[1724489589979,26.4263,155.61,155.56,6.4283]
[1724489590179,10.18563599,155.59,155.56,6.4283]
[1724489590381,10.18563599,155.57,155.54,31.2728]
[1724489590755,1.28903068,155.6,155.54,31.2728]
[1724489590955,10.18563599,155.59,155.56,6.4279]
[1724489594670,20.0,155.61,155.56,6.4279]
[1724489594866,30.18563599,155.61,155.56,6.4279]
[1724489595383,30.18563599,155.61,155.57,6.4277]
[1724489596311,20.0,155.61,155.57,6.4277]
[1724489596478,30.18563599,155.62,155.57,6.4277]
[1724489596662,31.47466667,155.62,155.57,6.4277]
[1724489596985,37.90056667,155.62,155.57,6.4277]
[1724489597191,10.18563599,155.6,155.57,6.4277]
[1724489597572,10.18563599,155.6,155.56,22.4985]
[1724489603764,20.0,155.62,155.57,6.4277]
[1724489604120,10.18563599,155.6,155.57,6.4277]
[1724489604690,6.4263,155.61,155.56,21.9985]
[1724489604881,10.18563599,155.59,155.56,21.9985]
[1724489607597,10.18563599,155.59,155.56,15.5702]
[1724489607893,16.61273599,155.59,155.54,21.6298]
[1724489608092,10.18563599,155.59,155.55,6.4287]
[1724489609281,11.47466667,155.59,155.55,6.4287]
[1724489609698,10.18563599,155.59,155.55,6.4287]
[1724489609878,11.47466667,155.59,155.55,6.4287]
[1724489612593,10.18563599,155.57,155.53,16.074]
[1724489613872,1.28903068,155.56,155.53,16.074]
[1724489616989,1.28903068,155.56,155.52,6.4299]
[1724489618379,17.90266667,155.57,155.52,6.4299]
[1724489640010,10.18563599,155.55,155.51,6.4303]
[1724489640316,1.28903068,155.54,155.51,6.4303]
[1724489640743,1.28903068,155.54,155.5,22.5076]
[1724489641604,33.18516667,155.55,155.5,22.5076]
[1724489642002,15.2817,155.55,155.5,16.0769]
[1724489642948,16.57073068,155.55,155.5,16.0769]
[1724489643231,16.57073068,155.55,155.52,6.4299]
[1724489643602,15.2817,155.55,155.52,6.4299]
[1724489644708,15.2817,155.55,155.53,6.4295]
[1724489645052,1.28903068,155.54,155.52,6.43]
[1724489645197,21.28903068,155.56,155.52,6.43]
[1724489646936,27.71743068,155.56,155.51,6.4304]
[1724489651016,27.71743068,155.56,155.52,1.60989379]
[1724489651215,27.71743068,155.56,155.51,6.4304]
[1724489651216,10.18563599,155.55,155.51,6.4304]
[1724489651516,1.28903068,155.54,155.52,1.60990131]
[1724489651708,11.47466667,155.55,155.51,6.4304]
[1724489651909,11.47466667,155.55,155.52,1.60989501]
[1724489652118,11.47466667,155.55,155.51,6.4304]
[1724489652309,11.47466667,155.55,155.52,1.60989494]
[1724489652508,11.47466667,155.55,155.51,6.4304]
[1724489652709,11.47466667,155.55,155.52,1.60989384]
[1724489653015,1.28903068,155.54,155.51,6.4304]
[1724489653227,11.47466667,155.55,155.52,1.60990174]
[1724489653427,11.47466667,155.55,155.51,6.4304]
[1724489653727,1.28903068,155.54,155.52,1.60990162]
[1724489653902,1.28903068,155.54,155.51,6.4304]
[1724489654100,1.28903068,155.54,155.52,1.60990272]
[1724489654305,1.28903068,155.54,155.51,6.4304]
[1724489654531,1.28903068,155.54,155.52,1.60990272]
[1724489654739,16.35883068,155.54,155.53,1.60990272]
[1724489654899,16.48432068,155.54,155.51,6.4304]
[1724489655634,16.48432068,155.54,155.5,22.5077]
[1724489655812,16.48432068,155.54,155.51,1.61006709]
[1724489656010,16.48432068,155.54,155.5,22.5077]
[1724489656211,16.48432068,155.54,155.51,1.61011043]
[1724489656420,16.48432068,155.54,155.5,22.5077]
[1724489656813,16.48432068,155.54,155.51,1.61011043]
[1724489657016,16.48432068,155.54,155.5,22.5077]
[1724489657219,16.48432068,155.54,155.51,1.61011043]
[1724489657530,16.48432068,155.54,155.5,22.5077]
[1724489657835,16.48432068,155.54,155.51,1.61011039]
[1724489658012,16.48432068,155.54,155.5,22.5077]
[1724489658212,16.48432068,155.54,155.51,1.61011058]
[1724489658413,16.48432068,155.54,155.5,22.5077]
[1724489658640,16.48432068,155.54,155.51,1.61011058]
[1724489658939,16.48432068,155.54,155.5,22.5077]
[1724489659108,16.48432068,155.54,155.51,1.61010195]
[1724489659443,16.48432068,155.54,155.5,22.5077]
[1724489659733,16.48432068,155.54,155.51,1.61011952]
[1724489660042,16.48432068,155.54,155.5,22.5077]
[1724489660230,16.48432068,155.54,155.51,1.61011884]
[1724489660406,16.48432068,155.54,155.5,22.5077]
[1724489661709,16.48432068,155.54,155.48,6.4313]
[1724489661911,16.74072599,155.53,155.48,6.4313]
[1724489662110,1.28903068,155.52,155.49,6.4312]
[1724489662628,11.60015667,155.53,155.49,6.4312]
[1724489663309,1.41452068,155.53,155.49,6.4312]
[1724489663730,15.0698,155.54,155.5,6.4307]
[1724489663936,22.78803068,155.54,155.5,6.4307]
[1724489666049,22.78803068,155.54,155.49,6.4312]
[1724489666842,6.4297,155.53,155.48,6.4316]
[1724489667022,1.28903068,155.52,155.48,6.4316]
[1724489668245,1.28903068,155.52,155.49,6.431]
[1724489675135,10.18563599,155.53,155.49,6.431]
[1724489675339,11.47466667,155.53,155.49,6.431]
[1724489676530,10.18563599,155.53,155.5,6.4308]
[1724489676852,10.18563599,155.53,155.44,16.51333599]
[1724489676853,15.0698,155.54,155.51,6.4303]
[1724489677055,20.0,155.53,155.51,6.4303]
[1724489681080,20.0,155.53,155.5,6.4308]
[1724489684053,20.0,155.53,155.46,10.18563599]
[1724489684255,20.0,155.53,155.51,6.4302]
[1724489684643,20.0,155.53,155.49,6.4308]
[1724489684845,21.28903068,155.53,155.49,6.4308]
[1724489685058,21.28903068,155.53,155.5,6.4308]
[1724489687157,20.0,155.53,155.5,6.4308]
[1724489692362,20.0,155.53,155.49,6.4312]
[1724489693154,1.28903068,155.52,155.49,6.4312]
[1724489693490,1.28903068,155.52,155.48,6.4316]
[1724489693799,1.28903068,155.51,155.48,6.4316]
[1724489698460,20.0,155.53,155.48,6.4316]
[1724489698654,31.47466667,155.53,155.48,6.4316]
[1724489699379,20.0,155.53,155.49,8.04124836]
[1724489699553,20.0,155.53,155.5,1.61014836]
[1724489699755,20.0,155.53,155.49,6.4311]
[1724489699977,20.0,155.53,155.5,1.61015272]
[1724489700184,15.0698,155.54,155.49,6.4311]
[1724489700375,20.0,155.53,155.49,6.4311]
[1724489700683,20.0,155.53,155.5,1.61016165]
[1724489700981,20.0,155.53,155.49,6.4311]
[1724489701151,20.0,155.53,155.5,1.61016184]
[1724489701357,20.0,155.53,155.49,6.4311]
[1724489701659,20.0,155.53,155.5,1.61016165]
[1724489701859,20.0,155.53,155.49,6.4311]
[1724489702061,20.0,155.53,155.5,1.61016294]
[1724489702258,16.35883068,155.54,155.5,6.4307]
[1724489702458,20.0,155.53,155.5,6.4307]
[1724489706891,1.28903068,155.52,155.49,6.4312]
[1724489707091,1.28903068,155.52,155.5,1.61016935]
[1724489707395,1.28903068,155.52,155.49,6.4312]
[1724489707567,1.28903068,155.52,155.5,1.61016963]
[1724489707877,1.28903068,155.52,155.49,6.4312]
[1724489708103,21.28903068,155.53,155.49,6.4312]
[1724489708278,21.28903068,155.53,155.5,1.61016974]
[1724489708481,21.28903068,155.53,155.49,6.4312]
[1724489708683,21.28903068,155.53,155.5,1.61016073]
[1724489708885,21.28903068,155.53,155.49,6.4312]
[1724489709092,20.0,155.53,155.5,1.61016175]
[1724489709296,20.0,155.53,155.49,6.4312]
[1724489709589,1.28903068,155.52,155.5,1.61017057]
[1724489709799,20.0,155.53,155.49,6.4312]
[1724489709984,20.0,155.53,155.5,1.61017065]
[1724489710171,1.28903068,155.52,155.49,6.4312]
[1724489710490,1.28903068,155.52,155.5,1.61018684]
[1724489710700,1.28903068,155.52,155.49,6.4312]
[1724489710994,1.28903068,155.52,155.5,1.6101873]
[1724489711194,1.28903068,155.52,155.49,6.4312]
[1724489711397,1.28903068,155.52,155.5,1.61018854]
[1724489711600,1.28903068,155.52,155.49,6.4312]
[1724489711992,1.28903068,155.52,155.5,1.61017965]
[1724489712174,1.28903068,155.52,155.49,6.4312]
[1724489712376,1.28903068,155.52,155.5,1.61017973]
[1724489712702,1.28903068,155.52,155.49,6.4312]
[1724489712901,1.28903068,155.52,155.5,1.61017973]
[1724489713085,1.28903068,155.52,155.49,6.4312]
[1724489713288,1.28903068,155.52,155.5,1.61017946]
[1724489713485,1.28903068,155.52,155.49,6.4312]
[1724489713687,21.28903068,155.53,155.5,1.61017973]
[1724489713873,21.28903068,155.53,155.49,6.4312]
[1724489714074,21.28903068,155.53,155.5,1.61017938]
[1724489714302,21.28903068,155.53,155.49,6.4312]
[1724489714798,21.28903068,155.53,155.5,3.22035872]
[1724489715001,21.28903068,155.53,155.5,1.61017926]
[1724489717901,21.28903068,155.53,155.49,6.4312]
[1724489718106,21.28903068,155.53,155.5,1.61017942]
[1724489718405,21.28903068,155.53,155.49,6.4312]
[1724489718609,21.28903068,155.53,155.5,1.61017961]
[1724489718800,21.28903068,155.53,155.49,6.4312]
[1724489719112,21.28903068,155.53,155.5,1.61017926]
[1724489719302,21.28903068,155.53,155.49,6.4312]
[1724489719498,21.28903068,155.53,155.5,1.61017953]
[1724489719696,21.28903068,155.53,155.49,6.4312]
[1724489719898,21.28903068,155.53,155.5,1.61017644]
[1724489720104,21.28903068,155.53,155.49,6.4312]
[1724489720411,21.28903068,155.53,155.5,1.61016766]
[1724489720614,21.28903068,155.53,155.49,6.4312]
[1724489720811,21.28903068,155.53,155.5,1.61017083]
[1724489721010,21.28903068,155.53,155.49,6.4312]
[1724489721217,21.28903068,155.53,155.5,1.61017946]
[1724489721512,21.28903068,155.53,155.49,6.4312]
[1724489721703,20.0,155.53,155.5,1.61017953]
[1724489721881,21.28903068,155.53,155.5,1.61017953]
[1724489722799,31.47466667,155.53,155.5,1.61017953]
[1724489724413,21.28903068,155.53,155.5,1.61017953]
[1724489724598,31.47466667,155.53,155.5,1.61017953]
[1724489725195,45.0,155.52,155.5,1.61017953]
[1724489725400,1.28903068,155.52,155.5,1.61017953]
[1724489726613,7.71863068,155.53,155.5,1.61017953]
[1724489726910,17.90426667,155.53,155.5,1.61017953]
[1724489728090,17.90426667,155.53,155.48,6.4315]
[1724489728294,17.90426667,155.53,155.49,1.61025771]
[1724489728491,17.90426667,155.53,155.48,6.4315]
[1724489728692,17.90426667,155.53,155.49,1.61025771]
[1724489728894,17.90426667,155.53,155.48,6.4315]
[1724489729093,17.90426667,155.53,155.49,1.61025771]
[1724489729302,17.90426667,155.53,155.48,6.4315]
[1724489729493,17.90426667,155.53,155.49,1.61025771]
[1724489729705,17.90426667,155.53,155.48,6.4315]
[1724489729906,17.90426667,155.53,155.49,1.61025771]
[1724489730207,17.90426667,155.53,155.48,6.4315]
[1724489730513,17.90426667,155.53,155.49,1.61025791]
[1724489730687,17.90426667,155.53,155.48,6.4315]
[1724489730895,17.90426667,155.53,155.49,1.61028306]
[1724489731113,17.90426667,155.53,155.48,6.4315]
[1724489731421,17.90426667,155.53,155.49,1.61028216]
[1724489731726,17.90426667,155.53,155.48,6.4315]
[1724489731917,17.90426667,155.53,155.49,1.61028326]
[1724489732119,20.0,155.52,155.48,6.4315]
[1724489732412,1.28903068,155.51,155.48,6.4315]
[1724489732618,20.0,155.52,155.48,6.4315]
[1724489732913,20.0,155.52,155.49,1.61036348]
[1724489733215,20.0,155.52,155.48,6.4315]
[1724489733390,20.0,155.52,155.49,1.61034256]
[1724489733589,20.0,155.52,155.48,6.4315]
[1724489733913,20.0,155.52,155.49,1.61034256]
[1724489734224,20.0,155.52,155.48,6.4315]
[1724489737015,20.0,155.53,155.48,6.4315]
[1724489737315,20.0,155.53,155.49,1.61024884]
[1724489737502,20.0,155.53,155.5,1.61024865]
[1724489737822,20.0,155.53,155.48,6.4315]
[1724489738119,20.0,155.53,155.49,8.04114021]
[1724489738293,20.0,155.53,155.5,1.61024021]
[1724489738497,20.0,155.54,155.49,6.4309]
[1724489738696,20.0,155.54,155.5,1.61023085]
[1724489739001,20.0,155.54,155.49,6.4309]
[1724489739199,20.0,155.54,155.5,1.61023085]
[1724489739423,20.0,155.54,155.49,6.4309]
[1724489739792,20.0,155.54,155.5,1.61023085]
[1724489739997,20.0,155.54,155.49,6.4309]
[1724489740221,20.0,155.54,155.5,1.61023066]
[1724489740405,20.0,155.54,155.49,6.4309]
[1724489740588,20.0,155.54,155.5,1.61023066]
[1724489740791,20.0,155.54,155.49,6.4309]
[1724489741016,20.0,155.54,155.5,1.61023085]
[1724489741218,20.0,155.54,155.49,6.4309]
[1724489741400,20.0,155.54,155.5,1.61023085]
[1724489741723,20.0,155.54,155.49,6.4309]
[1724489741900,21.28903068,155.54,155.49,6.4309]
[1724489742410,16.61533599,155.53,155.5,1.61023967]
[1724489742595,21.28903068,155.52,155.45,16.3064]
[1724489745009,21.28903068,155.52,155.46,3.7358846]
[1724489745334,21.28903068,155.52,155.45,16.3064]
[1724489745932,21.28903068,155.52,155.46,3.73586435]
[1724489746227,21.28903068,155.52,155.45,16.3064]
[1724489748211,27.71903068,155.52,155.47,6.4317]
[1724489748931,21.28903068,155.52,155.47,6.4317]
[1724489749747,31.47466667,155.52,155.47,6.4317]
[1724489752339,1.28903068,155.51,155.47,6.4317]
[1724489760453,21.28903068,155.51,155.47,6.4317]
[1724489760746,6.4315,155.49,155.4,6.4748]
[1724489760953,11.47466667,155.48,155.4,6.4748]
[1724489761526,17.90636667,155.48,155.37,15.4378]
[1724489761847,10.18563599,155.46,155.41,6.4345]
[1724489762448,11.47466667,155.46,155.41,6.4345]
[1724489763247,17.90726667,155.46,155.41,6.4345]
[1724489763953,1.28903068,155.45,155.41,6.4345]
[1724489764323,17.90726667,155.46,155.41,6.4345]
[1724489765636,11.47466667,155.46,155.41,6.4345]
[1724489765958,20.0,155.47,155.39,10.18563599]
[1724489766125,20.0,155.47,155.39,15.92784744]
[1724489766326,20.0,155.47,155.41,10.18563599]
[1724489766654,20.0,155.47,155.42,1.28662486]
[1724489766856,20.0,155.47,155.44,6.4331]
[1724489767025,20.0,155.48,155.41,10.18563599]
[1724489767336,15.9052,155.5,155.37,21.9126]
[1724489767337,15.9052,155.5,155.47,6.432]
[1724489767540,15.9052,155.5,155.43,10.18563599]
[1724489767737,15.9052,155.5,155.43,15.92752268]
[1724489768341,15.9052,155.5,155.43,5.74188669]
[1724489768543,15.9052,155.5,155.43,15.92752268]
[1724489768753,15.9052,155.5,155.44,5.74191734]
[1724489768951,15.9052,155.5,155.43,15.92757858]
[1724489769141,15.9052,155.5,155.44,5.74191476]
[1724489769341,15.9052,155.5,155.46,6.4323]
[1724489769936,23.42163068,155.54,155.48,6.4313]
[1724489770756,23.42163068,155.54,155.49,6.4311]
[1724489770937,22.1326,155.54,155.49,6.4311]
[1724489771356,20.0,155.53,155.49,6.4311]
[1724489772826,6.0528,155.56,155.51,6.4304]
[1724489773463,7.34183068,155.56,155.51,6.4304]
[1724489774344,20.0,155.55,155.51,6.4304]
[1724489775432,32.31653599,155.58,155.52,6.43]
[1724489775631,65.12549,155.57,155.52,6.43]
[1724489776137,20.0,155.57,155.52,6.43]
[1724489776637,21.28903068,155.57,155.52,6.43]
[1724489778155,31.47466667,155.57,155.52,6.43]
[1724489779558,1.28903068,155.56,155.49,6.431]
[1724489779861,46.41452068,155.56,155.46,10.18563599]
[1724489780070,20.0,155.55,155.46,10.18563599]
[1724489780234,11.47466667,155.56,155.46,10.18563599]
[1724489780436,20.0,155.55,155.48,10.18563599]
[1724489780635,26.4279,155.57,155.48,25.29023599]
[1724489780830,27.71693068,155.57,155.48,25.29023599]
[1724489782163,27.71693068,155.57,155.52,6.43]
[1724489783074,10.18563599,155.56,155.52,6.43]
[1724489783257,21.28903068,155.55,155.52,6.43]
[1724489783559,20.0,155.55,155.5,6.4304]
[1724489784069,20.0,155.55,155.48,25.29023599]
[1724489784070,20.0,155.55,155.51,6.4301]
[1724489784669,21.28903068,155.55,155.51,6.4301]
[1724489785046,20.0,155.55,155.52,6.43]
[1724489785243,10.18563599,155.56,155.52,6.43]
[1724489785450,1.28903068,155.57,155.52,6.43]
[1724489785747,11.47466667,155.57,155.52,6.43]
[1724489788258,20.0,155.56,155.52,6.43]
[1724489788464,1.28903068,155.55,155.52,6.43]
[1724489789278,20.0,155.56,155.52,6.43]
[1724489792660,15.7034,155.58,155.49,1.28590696]
[1724489792867,25.88903599,155.58,155.49,1.28590696]
[1724489793077,20.0,155.57,155.53,6.4296]
[1724489794257,20.0,155.58,155.54,6.429]
[1724489795081,22.48722988,155.62,155.53,16.3343]
[1724489795379,10.18563599,155.61,155.53,16.3343]
[1724489795572,11.47466667,155.61,155.53,16.3343]
[1724489796271,11.47466667,155.61,155.56,6.4283]
[1724489796660,20.0,155.6,155.56,6.4283]
[1724489797075,20.0,155.6,155.55,6.4287]
[1724489797271,10.18563599,155.59,155.55,6.4287]
[1724489797779,20.0,155.6,155.56,6.4283]
[1724489797980,20.0,155.6,155.55,6.4287]
[1724489798152,30.18563599,155.6,155.55,6.4287]
[1724489798577,30.18563599,155.6,155.56,6.4281]
[1724489799158,30.18563599,155.6,155.55,6.4287]
[1724489799359,31.47466667,155.6,155.55,6.4287]
[1724489799683,10.18563599,155.59,155.55,6.4287]
[1724489802880,11.47466667,155.59,155.55,6.4287]
[1724489803084,20.0,155.6,155.59,6.4271]
[1724489803488,20.0,155.6,155.58,6.4274]
[1724489803774,20.0,155.62,155.58,6.4274]
[1724489804263,20.0,155.62,155.55,10.18563599]
[1724489804583,0.8387862,155.63,155.54,0.12549]
[1724489804793,10.18563599,155.62,155.54,0.12549]
[1724489804964,20.0,155.61,155.54,0.12549]
[1724489805159,0.8387862,155.63,155.56,10.18563599]
[1724489805367,0.8387862,155.63,155.55,6.3884]
[1724489805662,1.28903068,155.62,155.57,6.4278]
[1724489805850,10.18563599,155.62,155.57,6.4278]
[1724489807658,10.18563599,155.62,155.55,6.3884]
[1724489807659,0.8387862,155.63,155.55,6.3884]
[1724489807862,0.8387862,155.63,155.58,10.18563599]
[1724489808355,0.8387862,155.63,155.59,6.4268]
[1724489808558,0.8387862,155.63,155.6,6.4266]
[1724489809064,0.8387862,155.63,155.58,6.4273]
[1724489809265,0.8387862,155.63,155.59,6.427]
[1724489810182,11.02442219,155.63,155.57,6.4276]
[1724489810492,21.28903068,155.62,155.57,6.4276]
[1724489811471,22.12781688,155.63,155.57,6.4276]
[1724489812569,16.61163599,155.62,155.53,16.3343]
[1724489812885,21.28903068,155.61,155.53,16.3343]
[1724489813078,20.0,155.61,155.57,6.4279]
[1724489813481,20.0,155.61,155.58,6.4274]
[1724489813985,20.8387862,155.63,155.58,6.4274]
[1724489815085,20.8387862,155.63,155.59,6.4271]
[1724489815286,20.0,155.62,155.59,6.4271]
[1724489815468,0.8387862,155.63,155.6,1.28519564]
[1724489816096,0.8387862,155.63,155.57,1.28517774]
[1724489816097,20.8387862,155.63,155.57,1.28517774]
[1724489816287,20.8387862,155.63,155.58,6.4271]
[1724489817063,20.8387862,155.63,155.59,6.4269]
[1724489817271,20.0,155.62,155.59,7.71210162]
[1724489817574,20.0,155.62,155.59,6.4269]
[1724489817781,0.8387862,155.63,155.59,6.4269]
[1724489818407,0.8387862,155.63,155.6,6.4266]
[1724489820097,0.8387862,155.63,155.61,6.4261]
[1724489820894,0.8387862,155.63,155.62,6.4259]
[1724489824503,0.3387862,155.63,155.62,6.4259]
[1724489825074,0.3387862,155.63,155.62,7.95848151]
[1724489825305,0.3387862,155.63,155.62,61.86251599]
[1724489826396,0.3387862,155.63,155.62,6.4259]
[1724489827198,0.3387862,155.63,155.62,7.71072225]
[1724489827402,0.3387862,155.63,155.62,6.4259]
[1724489827873,0.3387862,155.63,155.62,7.71066944]
[1724489829384,0.3387862,155.63,155.62,6.4259]
[1724489831681,0.3387862,155.63,155.57,10.18563599]
[1724489831881,0.3387862,155.63,155.62,6.4259]
[1724489838195,0.3387862,155.63,155.62,7.71073724]
[1724489840011,0.3387862,155.63,155.62,6.4259]
[1724489840191,0.3387862,155.63,155.62,52.96170329]
[1724489842610,0.3387862,155.63,155.62,51.67688]
[1724489843308,0.3387862,155.63,155.62,61.86251599]
[1724489844420,0.3387862,155.63,155.62,51.67688]
[1724489844726,0.3387862,155.63,155.62,61.86251599]
[1724489845221,0.3387862,155.63,155.62,51.67688]
[1724489845405,0.3387862,155.63,155.62,61.86251599]
[1724489852127,0.3387862,155.63,155.61,6.4263]
[1724489852321,0.3387862,155.63,155.6,6.4267]
[1724489852523,0.3387862,155.63,155.61,1.28507282]
[1724489853737,0.3387862,155.63,155.61,7.71127282]
[1724489856041,0.3387862,155.63,155.61,17.89690881]
[1724489856344,0.3387862,155.63,155.62,6.4259]
[1724489856527,0.3387862,155.63,155.61,6.4262]
[1724489856927,0.3387862,155.63,155.62,7.71088758]
[1724489857127,0.3387862,155.63,155.62,6.4259]
[1724489857553,0.3387862,155.63,155.61,6.4263]
[1724489857753,0.3387862,155.63,155.61,7.70875824]
[1724489858935,0.3387862,155.63,155.61,6.4263]
[1724489859643,0.3387862,155.63,155.61,7.71129872]
[1724489859842,0.3387862,155.63,155.61,6.4263]
[1724489860344,0.3387862,155.63,155.6,6.4266]
[1724489862726,0.3387862,155.63,155.61,6.4261]
[1724489866822,0.3387862,155.63,155.62,1.28502379]
[1724489867021,0.3387862,155.63,155.61,6.4261]
[1724489867954,0.3387862,155.63,155.62,6.4259]
[1724489868129,0.3387862,155.63,155.61,6.4262]
[1724489868525,0.3387862,155.63,155.55,0.12549]
[1724489868743,0.3387862,155.63,155.58,6.4272]
[1724489869366,6.7642862,155.63,155.58,6.4272]
[1724489869657,35.1335,155.62,155.57,6.4279]
[1724489869830,35.1335,155.62,155.58,6.4275]
[1724489870423,35.1335,155.62,155.57,6.4279]
[1724489870631,15.1335,155.62,155.58,7.71244038]
[1724489871824,15.1335,155.62,155.58,6.4271]
[1724489873358,15.1335,155.62,155.59,1.28525877]
[1724489873656,15.1335,155.62,155.59,1.28524787]
[1724489874451,15.1335,155.62,155.58,6.4271]
[1724489875855,15.1335,155.62,155.58,7.71231824]
[1724489876857,15.1335,155.62,155.59,1.28526069]
[1724489880270,15.1335,155.62,155.58,6.4271]
[1724489880730,15.1335,155.62,155.59,6.4271]
[1724489880936,15.1335,155.62,155.6,1.2851874]
[1724489881166,15.1335,155.62,155.59,6.4271]
[1724489888368,15.1335,155.62,155.58,6.4274]
[1724489897283,0.3387862,155.63,155.59,1.28254403]
[1724489897477,20.3387862,155.63,155.59,6.427]
[1724489898183,0.3387862,155.63,155.59,6.427]
[1724489902100,6.7642862,155.63,155.58,1.28529682]
[1724489902386,6.7642862,155.63,155.57,7.712861]
[1724489902593,6.7642862,155.63,155.58,1.2853614]
[1724489903088,6.7642862,155.63,155.56,10.18563599]
[1724489903266,6.7642862,155.63,155.57,1.28536119]
[1724489904173,0.3387862,155.63,155.57,1.28536119]
[1724489905789,0.3387862,155.63,155.58,1.28529766]
[1724489905997,0.3387862,155.63,155.56,10.18563599]
[1724489906168,0.3387862,155.63,155.57,1.28522415]
[1724489906371,0.3387862,155.63,155.58,1.28520133]
[1724489907168,0.3387862,155.63,155.59,6.4269]
[1724489915198,0.3387862,155.63,155.57,1.28526393]
[1724489916291,0.3387862,155.63,155.59,6.427]
[1724489917003,0.3387862,155.63,155.61,6.4263]
[1724489917180,0.3387862,155.63,155.61,7.71135361]
[1724489917372,0.3387862,155.63,155.61,6.4263]
[1724489917770,0.3387862,155.63,155.62,1.28507327]
[1724489918003,0.3387862,155.63,155.62,7.71097327]
[1724489918298,0.3387862,155.63,155.62,6.4259]
[1724489919880,0.3387862,155.63,155.62,16.61153599]
[1724489921998,0.3387862,155.63,155.62,61.86251599]
[1724489924476,12.06843,155.7,155.69,6.423]
[1724489929712,12.06843,155.7,155.68,6.4234]
[1724489931713,12.06843,155.7,155.64,15.6013]
[1724489931901,12.06843,155.7,155.65,55.31112599]
[1724489932618,12.06843,155.7,155.65,55.18563599]
[1724489933130,12.06843,155.7,155.66,1.28450701]
[1724489934320,12.06843,155.7,155.65,55.18563599]
[1724489936515,12.06843,155.7,155.66,1.28450885]
[1724489938000,12.06843,155.7,155.65,45.0]
[1724489938320,12.06843,155.7,155.65,55.18563599]
[1724489938826,12.06843,155.7,155.67,6.4238]
[1724489940705,12.06843,155.7,155.66,6.4241]
[1724489943211,12.06843,155.7,155.65,10.18563599]
[1724489943212,12.06843,155.7,155.67,6.4237]
[1724489950512,12.06843,155.7,155.68,1.28454481]
[1724489951729,12.06843,155.7,155.67,6.4237]
[1724489952215,12.06843,155.7,155.68,6.4233]
[1724489954417,12.06843,155.7,155.68,7.70776003]
[1724489955137,12.06843,155.7,155.68,6.4233]
[1724489955735,12.06843,155.7,155.69,52.83275491]
[1724489955935,12.06843,155.7,155.69,63.0183909]
[1724489956230,12.06843,155.7,155.69,61.73412599]
[1724489956428,12.06843,155.7,155.69,61.85961599]
[1724489957638,12.06843,155.7,155.69,63.14384552]
[1724489957835,12.06843,155.7,155.69,61.85961599]
[1724489959345,0.8387862,155.78,155.77,6.4197]
[1724489959513,0.8387862,155.78,155.77,16.73082599]
[1724489959831,0.8387862,155.78,155.77,61.85631599]
[1724489960337,6.1077,155.93,155.78,23.97648456]
[1724489960630,15.0315,155.92,155.89,6.4147]
[1724489960942,15.0315,155.92,155.9,1.28267508]
[1724489961138,0.8387862,155.94,155.9,1.28267508]
[1724489961318,0.8387862,155.94,155.79,46.65916565]
[1724489961319,0.8387862,155.94,155.91,11.59289774]
[1724489961638,0.8387862,155.94,155.92,1.28234083]
[1724489962013,0.8387862,155.94,155.9,1.28244778]
[1724489962313,0.8387862,155.94,155.86,6.4157]
[1724489962517,16.59883599,155.93,155.87,45.12549]
[1724489962815,10.18563599,155.93,155.86,45.0]
[1724489963238,21.1392,155.92,155.87,1.28283505]
[1724489963416,21.1392,155.92,155.84,1.28290772]
[1724489964018,6.4141,155.91,155.84,7.69940772]
[1724489964236,15.0315,155.92,155.85,7.69906888]
[1724489964736,15.0315,155.92,155.86,45.0]
[1724489964937,15.0315,155.92,155.87,0.12549]
[1724489965438,10.18563599,155.91,155.84,0.12549]
[1724489965626,6.4149,155.89,155.84,1.28296085]
[1724489965828,6.4149,155.89,155.82,6.4176]
[1724489966020,6.4149,155.89,155.83,1.28309922]